Cogmind - Beta 12 @@@ ROGUE MODE // 2023.04.12 @ 10:17:42 Player: btmk16 Result: Destroyed by 8R-AWN with 8R-AWN's Boregun Performance ------------- Evolutions (0) 0 Regions Visited (3) 600 Robots Destroyed (15) 75 Value Destroyed (355) 355 Prototype IDs (0) 0 Alien Tech Used (0) 0 Bonus (300) 300 TOTAL SCORE: 1330 Bonus ------- Aligned with FarCom 300 Cogmind --------- Core Integrity 0/250 Matter 132/300 Energy 176/250 System Corruption 5% Temperature Cool (93) Movement Treading (240) Ox1 Location -10/Exiles Parts ------- > --- POWER (1) -------- Ion Engine > --- PROPULSION (2) --- Improved Treads Improved Treads > --- UTILITY (2) ------ High-capacity Storage Unit Light Armor Plating > --- WEAPON (2) ------- Slug Cannon > --- INVENTORY (20) --- Improved Heat Sink Small Matter Pod (50) Improved Terrain Scanner Seismic Detector Light Armor Plating Light Armor Plating Light Armor Plating Light Armor Plating Light Armor Plating Light Armor Plating Improved Light Armor Plating Hammer Peak State ------------ > --- POWER ------------ Ion Engine > --- PROPULSION ------- Improved Treads Improved Treads > --- UTILITY ---------- High-capacity Storage Unit Improved Light Armor Plating > --- WEAPON ----------- Assault Rifle Slug Cannon > --- INVENTORY -------- Ion Engine Improved Treads Improved Treads Improved Heat Sink Small Matter Pod Large Matter Pod Improved Terrain Scanner Seismic Detector Light Armor Plating Light Armor Plating Light Armor Plating Light Armor Plating Light Armor Plating Light Armor Plating Light Armor Plating Hammer [Rating: 16] Favorites ----------- Power Ion Engine Engine Ion Engine Propulsion Light Treads Treads Light Treads Utility High-capacity Storage Unit Device Seismic Detector Storage High-capacity Storage Unit Protection Light Armor Plating Weapon Assault Rifle Ballistic Gun Assault Rifle Ballistic Cannon Slug Cannon Launcher Grenade Launcher Impact Weapon Hammer Build | -11 -10 -10 -10 ------- Run | Jun Mat Min Exi Slots Evolved . | . . . . Power . | . . . . Propulsion . | . . . . Utility . | . . . . Weapon . | . . . . Parts Attached 41 | 8 13 12 8 Power 5 | 2 2 . 1 Engine 5 | 2 2 . 1 Core . | . . . . Reactor . | . . . . Propulsion 8 | 2 2 1 3 Treads 8 | 2 2 1 3 Leg . | . . . . Wheel . | . . . . Hover . | . . . . Flight . | . . . . Utility 8 | 2 3 2 1 Device 1 | 1 . . . Storage 2 | 1 1 . . Processor . | . . . . Hackware . | . . . . Protection 5 | . 2 2 1 Artifact . | . . . . Weapon 20 | 2 6 9 3 Energy Gun . | . . . . Energy Cannon . | . . . . Ballistic Gun 12 | 2 3 6 1 Ballistic Cannon 1 | . . . 1 Launcher 4 | . 1 2 1 Special Weapon . | . . . . Impact Weapon 3 | . 2 1 . Slashing Weapon . | . . . . Piercing Weapon . | . . . . Special Melee Weapon . | . . . . Unidentified Prototypes . | . . . . Parts Lost 10 | . . 3 7 Power 1 | . . . 1 Propulsion 4 | . . 1 3 Utility 1 | . . 1 . Weapon 4 | . . 1 3 Highest Loss Streak 4 | . . 1 4 To Critical Strikes 4 | . . . 4 Average Slot Usage (%) 99 | . 99 99 96 Engine 13 | . 13 14 12 Treads 27 | . 27 28 28 Device 3 | . 7 . . Storage 14 | . 14 14 14 Protection 10 | . 6 14 14 Ballistic Gun 23 | . 27 20 22 Launcher 2 | . . 3 . Impact Weapon 2 | . . 3 . Naked Turns . | . . . . Heaviest Build 53 | 15 53 53 53 Greatest Support 46 | 40 40 43 46 Greatest Overweight (x) 2 | . 2 1 1 Average Overweight (x) . | . . 1 1 Largest Inventory Capacity 20 | 8 20 20 20 Average Capacity 19 | 7 18 20 20 Most Carried 20 | 6 20 20 19 Average Carried 17 | 4 15 19 18 Final Capacity 20 | 8 20 20 20 Final Carried 20 | 6 20 19 12 Class Distribution -------------------- 100% | Mutant Dominant Class ---------------- Mutant | -10/Materials Mutant | -10/Mines Mutant | -10/Exiles Resources | -11 -10 -10 -10 ----------- Run | Jun Mat Min Exi Matter Collected 1396 | 304 449 493 150 Remotely . | . . . . Salvage Created 735 | 106 489 120 20 Parts 40 | 8 32 . . Haulers Intercepted 2 | . 2 . . Recyclers Shooed 2 | . 2 . . Parts Field Recycled . | . . . . Retrieved Matter . | . . . . Parts Self-Destructed . | . . . . Prevented . | . . . . Kills | -11 -10 -10 -10 ------- Run | Jun Mat Min Exi Combat Hostiles Destroyed 25 | . 8 12 5 Guns 15 | . 8 7 . Cannons 1 | . . . 1 AOE 9 | . . 5 4 Classes Destroyed 6 | 2 3 1 . Tunneler 3 | 2 1 . . Hauler 2 | . 2 . . Recycler 1 | 1 . . . Watcher 1 | . 1 . . Grunt 8 | . 8 . . Assembled 17 | . . 12 5 Best Kill Streak 4 | 3 3 3 4 Combat Bots Only 4 | . 2 3 4 Max Kills in Single Turn 2 | 1 1 2 2 Gunslinging . | . . . . Exploded 2 | . . 2 2 Melee . | . . . . Uniques/NPCs Destroyed . | . . . . Combat | -11 -10 -10 -10 -------- Run | Jun Mat Min Exi Damage Taken 1834 | . 362 574 898 Core 252 | . 87 48 117 Absorbed by Shields . | . . . . Regen/Repaired (Parts) 183 | . 183 . . Core Remaining (%) 100 | 100 . . . Volleys Fired 118 | 4 49 31 34 Largest 2 | 2 2 2 2 Hottest 68 | 40 40 50 68 Shots Fired 212 | 8 98 58 48 Gun 173 | 8 98 52 15 Cannon 28 | . . . 28 Launcher 11 | . . 6 5 Special . | . . . . Kinetic 201 | 8 98 52 43 Thermal . | . . . . Explosive 11 | . . 6 5 Electromagnetic . | . . . . Robot Hit Streak 15 | 6 15 5 4 Robot Miss Streak 8 | . 6 6 8 Penetration Max . | . . . . Secondary Targets . | . . . . Shots Hit Robots 123 | 6 67 30 20 Core Hits 59 | 4 24 21 10 Critical Kills . | . . . . Critical Parts Destroyed 1 | . . . 1 Critical Strikes 1 | . . . 1 Destroy 1 | . . . 1 Melee Attacks 6 | . 2 4 . Impact 6 | . 2 4 . Slashing . | . . . . Piercing . | . . . . Sneak Attacks . | . . . . Combat Hostiles . | . . . . Follow-up Attacks . | . . . . Damage Inflicted 2111 | 76 849 584 602 Guns 1370 | 76 849 329 116 Cannons 197 | . . . 197 Explosions 544 | . . 255 289 Melee . | . . . . Ramming . | . . . . Kinetic 1567 | 76 849 329 313 Thermal . | . . . . Explosive 544 | . . 255 289 Electromagnetic . | . . . . Impact . | . . . . Slashing . | . . . . Piercing . | . . . . Highest Corruption 5 | . . 5 5 Average Corruption 5 | . . 5 5 Corruption Purged . | . . . . Corruption Blocked . | . . . . Effects 18 | . . 12 6 Message Errors 5 | . . 2 3 Matter Fused 1 | . . . 1 Heat Flow Errors 2 | . . 2 . Energy Discharges 4 | . . 3 1 Data Loss (minor) 4 | . . 4 . Misfires 2 | . . 1 1 Overload Shots . | . . . . Overflow Damage 22 | . . 22 . Projectiles . | . . . . Explosions 22 | . . 22 . Melee . | . . . . Knockbacks 4 | . . . 4 Impact . | . . . . Kinetic 4 | . . . 4 Secondary . | . . . . Self-Inflicted Damage 84 | . . 84 . Shots 3 | . . 3 . Rammed . | . . . . Targets Rammed . | . . . . Kicked . | . . . . Crushed . | . . . . Highest Temperature 271 | . 5 271 93 Average Temperature 58 | . 2 86 46 Received Heat Transfer 359 | . 159 180 20 Siege Activations . | . . . . Robots Corrupted . | . . . . Combat Hostiles . | . . . . Parts Fried . | . . . . Impact Corruptions . | . . . . Robots Melted . | . . . . Combat Hostiles . | . . . . Parts Melted . | . . . . Heat Transferred . | . . . . Parts Sabotaged . | . . . . Parts Stolen . | . . . . Parts Stripped . | . . . . Power Chain Reactions . | . . . . Missiles Intercepted . | . . . . Alert | -11 -10 -10 -10 ------- Run | Jun Mat Min Exi Peak Influence 164 | 15 164 16 . Initial 9 | . 9 . . Average 23 | 4 53 1 . Maximum Alert Level . | . . . . Low Security (%) 100 | 100 100 100 . Level 1 . | . . . . Level 2 . | . . . . Level 3 . | . . . . Level 4 . | . . . . Level 5 . | . . . . High Security . | . . . . Max Security . | . . . . Squads Dispatched 2 | . 2 . . Investigation 1 | . 1 . . Extermination . | . . . . Reinforcement 1 | . 1 . . Assault . | . . . . Garrison . | . . . . Intercept . | . . . . Searches Triggered . | . . . . Construction Impeded . | . . . . Haulers Reinforced . | . . . . Active Scanning Responses . | . . . . Cargo Convoy Interrupts . | . . . . Stealth | -11 -10 -10 -10 --------- Run | Jun Mat Min Exi Distress Signals 1 | . 1 . . Communications Jammed . | . . . . Distress Signals . | . . . . Times Spotted 44 | . 23 12 9 Peak Tracking Total 11 | . 4 3 11 Tactical Retreats 3 | . 1 2 . Traps | -11 -10 -10 -10 ------- Run | Jun Mat Min Exi Traps Triggered 5 | . 3 2 . Indirectly . | . . . . Trap Hack Attempts . | . . . . Triggered . | . . . . Disarmed . | . . . . Reprogrammed . | . . . . Reused . | . . . . Traps Extracted . | . . . . Installed . | . . . . Triggered . | . . . . Machines | -11 -10 -10 -10 ---------- Run | Jun Mat Min Exi Machines Disabled 2 | . 1 . 1 Max in Single Turn 1 | . 1 . 1 Machines Repaired . | . . . . Machines Sabotaged . | . . . . Overloaded Fab Kills . | . . . . Hacking | -11 -10 -10 -10 --------- Run | Jun Mat Min Exi Machines Accessed 10 | . 9 1 . Terminals 7 | . 7 . . Fabricators . | . . . . Repair Stations 1 | . 1 . . Recycling Units 1 | . 1 . . Scanalyzers . | . . . . Garrison Access . | . . . . Total Hacks 29 | . 28 1 . Successful 16 | . 15 1 . Failed 12 | . 12 . . Catastrophic . | . . . . Database Lockouts 1 | . 1 . . Manual 11 | . 11 . . Terminals 16 | . 16 . . Fabricators . | . . . . Repair Stations 6 | . 6 . . Recycling Units 6 | . 6 . . Scanalyzers . | . . . . Garrison Access . | . . . . Terminal Hacks 5 | . 4 1 . Robot Analysis 1 | . 1 . . Open Door 1 | . . 1 . Alert Level 1 | . 1 . . Locate Traps 2 | . 2 . . Fabricator Hacks . | . . . . Repair Station Hacks 6 | . 6 . . Scan Component 3 | . 3 . . Repair 3 | . 3 . . Recycling Unit Hacks 1 | . 1 . . Retrieve Components 1 | . 1 . . Scanalyzer . | . . . . Garrison Access Hacks . | . . . . Unauthorized Hacks 4 | . 4 . . Terminals 1 | . 1 . . Botnet 1 | . 1 . . Fabricators . | . . . . Repair Stations . | . . . . Recycling Units 3 | . 3 . . Reject 1 | . 1 . . Recyclers 1 | . 1 . . Mask 1 | . 1 . . Scanalyzers . | . . . . Garrison Access . | . . . . Data Cores Recovered . | . . . . Used . | . . . . Hacking Detections 8 | . 8 . . Full Trace Events . | . . . . Feedback Events . | . . . . Feedback Blocked . | . . . . Robot Schematics Acquired . | . . . . Robots Built . | . . . . Authchips . | . . . . Time . | . . . . Total Robot Build Rating . | . . . . Part Schematics Acquired . | . . . . Parts Built . | . . . . Authchips . | . . . . Time . | . . . . Total Part Build Rating . | . . . . Parts Repaired 3 | . 3 . . Time 78 | . 78 . . Parts Recycled . | . . . . Recycled Matter . | . . . . Retrieved Matter . | . . . . Retrieved Components . | . . . . Parts Scanalyzed . | . . . . Part Schematics Acquired . | . . . . Parts Damaged . | . . . . Bothacking | -11 -10 -10 -10 ------------ Run | Jun Mat Min Exi Used RIF Installer . | . . . . Robots Hacked . | . . . . Non-combat . | . . . . Combat . | . . . . Robot Hacks Applied . | . . . . Relay Couplers Released . | . . . . Fabnet Peak Effective % . | . . . . Robots Rewired . | . . . . Allies Hacked . | . . . . Hacks Repelled . | . . . . Allies | -11 -10 -10 -10 -------- Run | Jun Mat Min Exi Total Allies 3 | . . 3 . Largest Group 3 | . . 3 3 Highest-Rated Group 40 | . . 40 40 Highest-Rated Ally 16 | . . 16 16 Total Orders . | . . . . Ally Attacks 13 | . . . 13 Total Damage 122 | . . . 122 Kills 1 | . . . 1 Allies Corrupted . | . . . . Allies Melted . | . . . . Intel | -11 -10 -10 -10 ------- Run | Jun Mat Min Exi Robot Analysis Total 1 | . 1 . . Derelict Logs Recovered 2 | . . 2 . Drone Launches . | . . . . Drone Recoveries . | . . . . Exploration | -11 -10 -10 -10 ------------- Run | Jun Mat Min Exi Turns Passed 4817 | 113 1898 2455 351 Spaces Moved 1558 | 55 690 708 105 Core 3 | 3 . . . Treads 1555 | 52 690 708 105 Legs . | . . . . Wheels . | . . . . Hover . | . . . . Flight . | . . . . Fastest Speed 50 | 50 160 240 240 Average Speed 229 | 154 223 240 240 Slowest Speed 320 | 160 320 240 240 Overloaded Moves . | . . . . Propulsion Burnouts . | . . . . Robots Hopped . | . . . . Cave-ins Triggered . | . . . . Exploration Rate (%) 60 | 5 98 98 40 Regions Visited 3 Branch Regions 2 Pre-discovered Areas . | . . . . Known Exits Taken . | . . . . Unknown Exits Taken 3 | 1 1 1 . Scrap Searched 1 | . . 1 . Spaces Dug 3 | . 2 1 . Terrain Destroyed 73 | . 2 47 24 Melee 3 | . 2 1 . Projectile 14 | . . . 14 AOE 56 | . . 46 10 Terrain Rammed . | . . . . Walls Destroyed . | . . . . Machines Disabled . | . . . . Actions | -11 -10 -10 -10 --------- Run | Jun Mat Min Exi Total 2573 | 71 946 1398 158 Wait 817 | . 167 640 10 Move 1555 | 54 689 707 105 Hop . | . . . . Pick Up 25 | 5 18 2 . Fast Attach 14 | 7 7 . . Attach 9 | . . 3 6 Detach 1 | . 1 . . Swap 18 | 1 6 9 2 Drop 10 | . 7 2 1 Fire 118 | 4 49 31 34 Melee 6 | . 2 4 . Ram . | . . . . Kick . | . . . . Crush . | . . . . Escape Stasis . | . . . . Rewire . | . . . . Trap . | . . . . Miscellaneous . | . . . . Route ------- -11/Junkyard -10/Materials (discovered 5 exits: [*Mat x3] / *Min x2) -10/Mines (discovered 3 exits: [*Mat x2] / [*Exi]) -10/Exiles History --------- Turn | Location | Event 54 | -11/Junkyard | Discovered new exit (range 14) 114 | -11/Junkyard | Entered Materials 305 | -10/Materials | Build established: Mutant 365 | -10/Materials | Discovered new exit (range 8) 864 | -10/Materials | Discovered new exit (range 6) 1111 | -10/Materials | Discovered new exit (range 8) 1317 | -10/Materials | Repaired Lgt. Treads 1345 | -10/Materials | Repaired Ion Engine 1372 | -10/Materials | Repaired Assault Rifle 1475 | -10/Materials | Central database locked down 1487 | -10/Materials | Discovered new exit (range 15) 1797 | -10/Materials | Discovered new exit (range 13) 2012 | -10/Materials | Entered Mines 2013 | -10/Mines | Assembled infested the area 2965 | -10/Mines | A weapon hastily lodged in a ceiling crevice suddenly fell to the ground 3290 | -10/Mines | Found a damaged Exp. Sensor Array with a note attached 3413 | -10/Mines | Learned Materials terminal intel 3449 | -10/Mines | Discovered new exit (range 9) 3511 | -10/Mines | Discovered new exit (range 9) 3663 | -10/Mines | Met a Derelict who couldn't figure out how to use a Trap Extractor 3940 | -10/Mines | Core integrity fell below 50% 4140 | -10/Mines | Learned Materials security intel 4176 | -10/Mines | Deemed a non-threat by the Exiles lab entrance 4178 | -10/Mines | Discovered new exit (range 5) 4321 | -10/Mines | Assisted by bots powering up and referring to "LRC-V3" 4467 | -10/Mines | Entered Exiles 4467 | -10/Exiles | Accompanied by 3 allies 4527 | -10/Exiles | Met 8R-AWN 4568 | -10/Exiles | Met EX-HEX 4638 | -10/Exiles | Met EX-BIN 4669 | -10/Exiles | Aligned with FarCom system 4671 | -10/Exiles | Given EX-Vault access code 4691 | -10/Exiles | Attacked by the Exiles 4759 | -10/Exiles | Lost 3 parts (1n2w) 4801 | -10/Exiles | Core integrity fell below 20% 4818 | -10/Exiles | Destroyed by 8R-AWN with 8R-AWN's Boregun Last Messages --------------- 04791_ Penetrated by HV Slug. 04793_ HV Slug penetrates Wall. 04793_ HV Slug penetrates Earth. 04795_ Penetrated by HV Slug. 04795_ Slug penetrates Wall. 04798_ Penetrated by HV Slug. 04798_ Critical hit (Destroy). 04798_ Penetrated by HV Slug. 04800_ Critical hit (Destroy). 04800_ Imp. Treads destroyed. 04804_ Penetrated by HV Slug. 04813_ HV Slug penetrates Earth. 04813_ HV Slug penetrates Wall. 04813_ Dropped Lrg. Matter Pod. 04814_ Extracted 150 matter. 04818_ Destroyed Prototype Protection. 04818_ 8R-AWN knocked back. 04818_ HV Slug penetrates Wall. 04818_ HV Slug penetrates DEC's Workstation. 04818_ Penetrated by HV Slug. Map ----- +----------------------------------------------------+ | | | | | | | | | | | | | ?????????????????????????????????????????????????? | | ?????????????????????????????????????????????????? | | ?????????????????????????????????????????????????? | | ?????????????????????????????????????????????????? | | ?????????????????????????????????????????????????? | | ???????????????????????????#######???????????????? | | ???????????????????????????X #???????????????? | | ???????????????????????????# ##??????????????? | | ???????????????????????????# ; ??????????????? | | ???????????????????????????# ;???#???????????? | | ???????????????????????????# #??""???????????? | | ???????????????????????????# ## ????????????? | | ???????????????????????????# ?????????????? | | ???????????????????????????# ;#? ????????????? | | ????????????????????#######; % #;""????????????? | | ???????????????????#""""" ;; % ;;#?????????????? | | ???????????????????#"""" %;%g #???????????????? | | ???????????????????#""X" #???????????????? | | ??????????????????## % #???????????????? | | ??????????????????#; @;; #???????????????? | | ???????????????# ; ## #?#########?????? | | ???????????????# ;;;; ; ;### #?#"""""""#?????? | | ???????????????# ; ; ??# #"""""""#?????? | | ???????????????# ; ; ?? """""""#?????? | | ??????????????# ; ; ?## "" """"#?????? | | ?????????????# # ; ; ??#" """"#?????? | | ??????????????# ;;;;;; ??# """#?????? | | ??????????????# ??# = """#?????? | | ??????????????##% # ??# """#?????? | | ???????????????;#######???#" = """#?????? | | ?????????????? ???????????#" = """#?????? | | ??????????????????????????## =% %! """"?????? | | ???????????????????????????# """#?????? | | ???????????????????????????#" "X" """"?????? | | ???????????????????????????#" """ #?????? | | ???????????????????????????#" """""""""#?????? | | ??????????????????????????##" ###########?????? | | ?????????????????????????##"" #???????????????? | | ??????????????????????####"" #???????????????? | | ?????????????????????""""""" ##??????????????? | | ????????????????????""" " "" ##???########### | | ????????????????????""" " #####"""""""""# | | ??????????????????" " " """ """" | | ???????????????? "" " | +----------------------------------------------------+ Best States ------------- Heat Dissipation 25 Energy Generation 10 Energy Capacity 250 Matter Stores 300 Matter Capacity 300 Sight Range 16 Terrain Scan Density 10 Armor Coverage 150 Evasion (%) 40 Recoil Reduction 2 Item Schematics ----------------- None Robot Schematics ------------------ None Fabricated ------------ Nothing Alien Tech Used ----------------- None Achievements -------------- None Challenges ------------ None Game ------ Seed GrenadeVortexChip Manual? 0 Play Time 00:20:25 Cumulative 639.6 hours Start 2023.04.12 @ 09:25:45 End 2023.04.12 @ 10:17:42 Sessions 1 Manual Loads 0 Difficulty Rogue Special Mode None Game No. 649 Rogue 648 Adventurer 0 Explorer 1 Win Type - Total 30 Types 21/0/6/3/0/0/0/0/0 Lore% 84 Gallery% 92 Achievement% 78 Wizard Run 0 Options --------- ASCII 0 Keyboard 1 Movement Vi Keybinds 0 Fullscreen 1 Font 18/SmallcapsGlow Map View 76x50 Tactical HUD 1 Map Filters NONE Filters NONE Steam 1 RUN: a54791d5-5375-47e0-b008-6f689350af54